fUSD/lending_fUSD_20260324
["ID","MTS","AMOUNT","RATE_DAILY","PERIOD"]
[408879742,1774381838930,-500.0,0.00014124,2]
[408879743,1774381838940,-500.0,0.00014124,2]
[408879744,1774381838950,-500.0,0.00014124,2]
[408879745,1774381838959,-500.0,0.00014124,2]
[408879746,1774381838968,-500.0,0.00014124,2]
[408879747,1774381838978,-500.0,0.00014124,2]
[408879748,1774381838987,-500.0,0.00014124,2]
[408879749,1774381838996,-500.0,0.00014124,2]
[408879750,1774381839006,-500.0,0.00014124,2]
[408879751,1774381839015,-500.0,0.00014124,2]
[408879752,1774381839026,-500.0,0.00014124,2]
[408879753,1774381839035,-500.0,0.00014124,2]
[408879754,1774381839045,-500.0,0.00014124,2]
[408879755,1774381839055,-500.0,0.00014124,2]
[408879756,1774381839064,-500.0,0.00014124,2]
[408879757,1774381839074,-500.0,0.00014124,2]
[408879758,1774381839083,-500.0,0.00014124,2]
[408879759,1774381839094,-500.0,0.00014124,2]
[408879760,1774381839104,-193.89943557,0.00014124,2]
[408879761,1774381839114,-500.0,0.00014124,2]
[408879762,1774381839123,-500.0,0.00014124,2]
[408879763,1774381839142,-500.0,0.00014124,2]
[408879764,1774381839151,-276.99683744,0.00014124,2]
[408879765,1774381839161,-500.0,0.00014124,2]
[408879766,1774381839170,-500.0,0.00014124,2]
[408879767,1774381839179,-500.0,0.00014124,2]
[408879768,1774381839189,-500.0,0.00014124,2]
[408879769,1774381839198,-500.0,0.00014124,2]
[408879770,1774381839207,-500.0,0.00014124,2]
[408879771,1774381839216,-500.0,0.00014124,2]
[408879772,1774381839225,-500.0,0.00014124,2]
[408879773,1774381839234,-500.0,0.00014124,2]
[408879774,1774381839243,-500.0,0.00014124,2]
[408879775,1774381839253,-500.0,0.00014124,2]
[408879776,1774381839262,-500.0,0.00014124,2]
[408879777,1774381839271,-400.0,0.00014124,2]
[408879778,1774381839281,-500.0,0.00014124,2]
[408879779,1774381839290,-500.0,0.00014124,2]
[408879780,1774381839299,-500.0,0.00014124,2]
[408879781,1774381839308,-500.0,0.00014124,2]
[408879782,1774381839318,-500.0,0.00014124,2]
[408879783,1774381839327,-500.0,0.00014124,2]
[408879784,1774381839336,-500.0,0.00014124,2]
[408879785,1774381839346,-500.0,0.00014124,2]
[408879786,1774381839355,-500.0,0.00014124,2]
[408879787,1774381839364,-271.19077047,0.00014124,2]
[408879788,1774381839373,-500.0,0.00014124,2]
[408879789,1774381839383,-500.0,0.00014124,2]
[408879790,1774381839392,-500.0,0.00014124,2]
[408879791,1774381839401,-500.0,0.00014124,2]
[408879792,1774381839411,-500.0,0.00014124,2]
[408879793,1774381839420,-500.0,0.00014124,2]
[408879794,1774381839430,-500.0,0.00014124,2]
[408879795,1774381839439,-506.3328855,0.00014124,2]
[408879796,1774381839451,-500.0,0.00014124,2]
[408879797,1774381839460,-269.26650019,0.00014124,2]
[408879798,1774381839470,-500.0,0.00014124,2]
[408879799,1774381839479,-269.26650019,0.00014124,2]
[408879800,1774381839489,-500.0,0.00014124,2]
[408879801,1774381839498,-269.26650019,0.00014124,2]
[408879802,1774381839507,-500.0,0.00014124,2]
[408879803,1774381839517,-500.0,0.00014124,2]
[408879804,1774381839527,-384.67970034,0.00014124,2]
[408879805,1774381839536,-500.0,0.00014124,2]
[408879806,1774381839545,-500.0,0.00014124,2]
[408879807,1774381839554,-500.0,0.00014124,2]
[408879808,1774381839563,-500.0,0.00014124,2]
[408879809,1774381839573,-500.0,0.00014124,2]
[408879810,1774381839583,-500.0,0.00014124,2]
[408879811,1774381839592,-500.0,0.00014124,2]
[408879812,1774381839603,-500.0,0.00014124,2]
[408879813,1774381839612,-500.0,0.00014124,2]
[408879814,1774381839621,-500.0,0.00014124,2]
[408879815,1774381839630,-500.0,0.00014124,2]
[408879816,1774381839639,-500.0,0.00014124,2]
[408879817,1774381839649,-500.0,0.00014124,2]
[408879818,1774381839658,-500.0,0.00014124,2]
[408879819,1774381839667,-500.0,0.00014124,2]
[408879820,1774381839676,-500.0,0.00014124,2]
[408879821,1774381839686,-552.69,0.00014124,2]
[408879822,1774381839695,-552.69,0.00014124,2]
[408879823,1774381839704,-552.69,0.00014124,2]
[408879825,1774381839713,-552.69,0.00014124,2]
[408879826,1774381839722,-552.69,0.00014124,2]
[408879827,1774381839731,-552.69,0.00014124,2]
[408879828,1774381839741,-552.69,0.00014124,2]
[408879829,1774381839750,-552.69,0.00014124,2]
[408879830,1774381839759,-552.69,0.00014124,2]
[408879831,1774381839768,-552.69,0.00014124,2]
[408879832,1774381839777,-552.69,0.00014124,2]
[408879833,1774381839787,-552.69,0.00014124,2]
[408879834,1774381839796,-552.69,0.00014124,2]
[408879835,1774381839805,-552.69,0.00014124,2]
[408879836,1774381839815,-552.69,0.00014124,2]
[408879837,1774381839824,-552.69,0.00014124,2]
[408879838,1774381839834,-491.27751891,0.00014124,2]
[408879839,1774381839843,-500.0,0.00014124,2]
[408879840,1774381839852,-500.0,0.00014124,2]
[408879841,1774381839861,-500.0,0.00014124,2]
[408879842,1774381839870,-500.0,0.00014124,2]
[408879843,1774381839880,-500.0,0.00014124,2]
[408879844,1774381839889,-500.0,0.00014124,2]
[408879845,1774381839898,-500.0,0.00014124,2]
[408879846,1774381839907,-500.0,0.00014124,2]
[408879847,1774381839916,-500.0,0.00014124,2]
[408879848,1774381839926,-500.0,0.00014124,2]
[408879849,1774381839935,-500.0,0.00014124,2]
[408879850,1774381839945,-500.0,0.00014124,2]
[408879851,1774381839954,-500.0,0.00014124,2]
[408879852,1774381839963,-500.0,0.00014124,2]
[408879853,1774381839972,-500.0,0.00014124,2]
[408879854,1774381839981,-500.0,0.00014124,2]
[408879855,1774381839990,-500.0,0.00014124,2]
[408879856,1774381840000,-500.0,0.00014124,2]
[408879857,1774381840010,-500.0,0.00014124,2]
[408879858,1774381840019,-500.0,0.00014124,2]
[408879859,1774381840028,-500.0,0.00014124,2]
[408879860,1774381840038,-500.0,0.00014124,2]
[408879861,1774381840047,-500.0,0.00014124,2]
[408879865,1774381840056,-500.0,0.00014124,2]
[408879866,1774381840306,-500.0,0.00014124,2]
[408879867,1774381840316,-500.0,0.00014124,2]
[408879868,1774381840325,-500.0,0.00014124,2]
[408879869,1774381840335,-500.0,0.00014124,2]
[408879870,1774381840344,-500.0,0.00014124,2]
[408879871,1774381840353,-500.0,0.00014124,2]
[408879872,1774381840362,-500.0,0.00014124,2]
[408879873,1774381840372,-500.0,0.00014124,2]
[408879874,1774381840381,-500.0,0.00014124,2]
[408879875,1774381840390,-500.0,0.00014124,2]
[408879876,1774381840399,-500.0,0.00014124,2]
[408879877,1774381840408,-500.0,0.00014124,2]
[408879878,1774381840417,-500.0,0.00014124,2]
[408879879,1774381840426,-500.0,0.00014124,2]
[408879880,1774381840434,-504.81538106,0.00014124,2]
[408879881,1774381840446,-500.0,0.00014124,2]
[408879882,1774381840456,-500.0,0.00014124,2]
[408879883,1774381840465,-500.0,0.00014124,2]
[408879884,1774381840474,-500.0,0.00014124,2]
[408879885,1774381840482,-500.0,0.00014124,2]
[408879886,1774381840493,-500.0,0.00014124,2]
[408879887,1774381840502,-500.0,0.00014124,2]
[408879888,1774381840511,-500.0,0.00014124,2]
[408879889,1774381840520,-500.0,0.00014124,2]
[408879890,1774381840529,-500.0,0.00014124,2]
[408879891,1774381840538,-500.0,0.00014124,2]
[408879892,1774381840547,-369.83673199,0.00014124,2]
[408879893,1774381840555,-500.0,0.00014124,2]
[408879894,1774381840564,-500.0,0.00014124,2]
[408879895,1774381840573,-500.0,0.00014124,2]
[408879896,1774381840582,-500.0,0.00014124,2]
[408879897,1774381840591,-500.0,0.00014124,2]
[408879898,1774381840600,-500.0,0.00014124,2]
[408879899,1774381840609,-500.0,0.00014124,2]
[408879900,1774381840618,-500.0,0.00014124,2]
[408879901,1774381840626,-500.0,0.00014124,2]
[408879902,1774381840635,-500.0,0.00014124,2]
[408879903,1774381840644,-500.0,0.00014124,2]
[408879904,1774381840653,-293.37404714,0.00014124,2]
[408879905,1774381840663,-613.94,0.00014124,2]
[408879906,1774381840674,-613.94,0.00014124,2]
[408879907,1774381840684,-613.94,0.00014124,2]
[408879908,1774381840695,-613.94,0.00014124,2]
[408879909,1774381840704,-613.94,0.00014124,2]
[408879910,1774381840713,-613.94,0.00014124,2]
[408879911,1774381840722,-613.94,0.00014124,2]
[408879912,1774381840730,-613.94,0.00014124,2]
[408879913,1774381840739,-613.94,0.00014124,2]
[408879914,1774381840748,-613.94,0.00014124,2]
[408879915,1774381840759,-613.94,0.00014124,2]
[408879916,1774381840768,-613.94,0.00014124,2]
[408879917,1774381840778,-613.94,0.00014124,2]
[408879918,1774381840789,-613.94,0.00014124,2]
[408879919,1774381840799,-613.94,0.00014124,2]
[408879920,1774381840811,-613.94,0.00014124,2]
[408879921,1774381840820,-500.0,0.00014124,2]
[408879922,1774381840830,-500.0,0.00014124,2]
[408879923,1774381840839,-500.0,0.00014124,2]
[408879924,1774381840848,-500.0,0.00014124,2]
[408879925,1774381840861,-500.0,0.00014124,2]
[408879926,1774381840870,-500.0,0.00014124,2]
[408879927,1774381840880,-500.0,0.00014124,2]
[408879928,1774381840889,-500.0,0.00014124,2]
[408879929,1774381840898,-500.0,0.00014124,2]
[408879930,1774381840908,-526.80863898,0.00014124,2]
[408879931,1774381840917,-500.0,0.00014124,2]
[408879932,1774381840926,-500.0,0.00014124,2]
[408879933,1774381840935,-500.0,0.00014124,2]
[408879934,1774381840944,-500.0,0.00014124,2]
[408879935,1774381840954,-500.0,0.00014124,2]
[408879936,1774381840963,-500.0,0.00014124,2]
[408879937,1774381840972,-500.0,0.00014124,2]
[408879938,1774381840982,-500.0,0.00014124,2]
[408879939,1774381840991,-500.0,0.00014124,2]
[408879940,1774381841001,-500.0,0.00014124,2]
[408879941,1774381841010,-500.0,0.00014124,2]
[408879942,1774381841019,-500.0,0.00014124,2]
[408879943,1774381841028,-500.0,0.00014124,2]
[408879944,1774381841037,-500.0,0.00014124,2]
[408879945,1774381841046,-500.0,0.00014124,2]
[408879946,1774381841055,-500.0,0.00014124,2]
[408879947,1774381841064,-500.0,0.00014124,2]
[408879948,1774381841073,-2500000.0,0.00014125,2]
[408879949,1774381841082,-500.0,0.00014173,2]
[408879950,1774381841091,-500.0,0.00014173,2]
[408879951,1774381841099,-500.0,0.00014173,2]
[408879952,1774381841108,-500.26487115,0.00014173,2]
[408879953,1774381841118,-300.28216329,0.00014173,2]
[408879954,1774381841127,-500.0,0.00014173,2]
[408879955,1774381841136,-500.0,0.00014173,2]
[408879956,1774381841145,-501.38646377,0.00014173,2]
[408879957,1774381841153,-500.0,0.00014173,2]
[408879958,1774381841162,-500.25065648,0.00014173,2]
[408879959,1774381841172,-218.71564775,0.00014173,2]
[408879960,1774381841181,-500.0,0.00014173,2]
[408879961,1774381841189,-500.0,0.00014173,2]
[408879962,1774381841198,-500.0,0.00014173,2]
[408879963,1774381841207,-500.0,0.00014173,2]
[408879964,1774381841216,-500.0,0.00014173,2]
[408879965,1774381841225,-500.0,0.00014173,2]
[408879966,1774381841234,-500.0,0.00014173,2]
[408879967,1774381841243,-500.0,0.00014173,2]
[408879968,1774381841251,-500.0,0.00014173,2]
[408879969,1774381841260,-241.03734395,0.00014173,2]
[408879970,1774381841270,-500.0,0.00014173,2]
[408879971,1774381841278,-282.71,0.00014176,2]
[408879972,1774381841287,-500.0,0.00014199,2]
[408879973,1774381841296,-552.69,0.00014199,2]
[408879974,1774381841305,-500.0,0.00014199,2]
[408879975,1774381841314,-613.94,0.00014199,2]
[408879976,1774381841323,-4586.34,0.000142,2]
[408879977,1774381841333,-2154.46,0.000142,2]
[408879978,1774381841342,-10701.42,0.000142,2]
[408879979,1774381841352,-2843.01,0.000142,2]
[408879980,1774381841361,-4277.97,0.000142,2]
[408879981,1774381841371,-1314.76,0.000142,2]
[408879982,1774381841379,-9198.3394215,0.00014232,2]
[408879983,1774381841389,-32991.3775,0.00014235,2]
[408879984,1774381841398,-1000.0,0.00014235,2]
[408879985,1774381841407,-10357.95,0.00014255,2]
[408879986,1774381841416,-250.0,0.00014258,2]
[408879987,1774381841424,-788.01198663,0.00014258,2]
[408879988,1774381841433,-193.0,0.00014258,2]
[408879989,1774381841443,-150.0,0.00014258,2]
[408879990,1774381841454,-200.0,0.00014271,2]
[408879991,1774381841463,-420.0,0.0001428,2]
[408879992,1774381841472,-1700.42643037,0.00014295,2]
[408879993,1774381841481,-500.0,0.00014298,2]
[408879994,1774381841490,-1600.0,0.00014306,2]
[408879995,1774381841499,-1370.62974145,0.00014338,2]
[408879996,1774381841508,-1215.43,0.00014384,2]
[408879997,1774381841518,-500.0,0.00014387,2]
[408879998,1774381841527,-500.0,0.00014387,2]
[408879999,1774381841536,-546.04543671,0.00014387,2]
[408880000,1774381841545,-500.0,0.00014387,2]
[408880001,1774381841554,-625.92,0.00014387,2]
[408880002,1774381841563,-500.0,0.00014387,2]
[408880003,1774381841572,-992.02,0.0001439,2]
[408880004,1774381841581,-1318.1988727,0.00014399,2]
[408880005,1774381841590,-2804.0,0.000144,2]
[408880006,1774381841598,-9198.3394215,0.0001444,2]
[408880007,1774381841607,-647.65024546,0.00014461,2]
[408880008,1774381841616,-500.0,0.00014487,2]
[408880009,1774381841625,-500.0,0.00014487,2]
[408880010,1774381841634,-500.0,0.00014487,2]
[408880011,1774381841642,-500.0,0.00014487,2]
[408880012,1774381841651,-500.0,0.00014487,2]
[408880013,1774381841660,-500.0,0.00014487,2]
[408880014,1774381841670,-500.0,0.00014487,2]
[408880015,1774381841679,-500.0,0.00014487,2]
[408880016,1774381841688,-500.0,0.00014487,2]
[408880017,1774381841698,-500.0,0.00014487,2]
[408880018,1774381841707,-500.0,0.00014487,2]
[408880019,1774381841716,-500.0,0.00014487,2]
[408880020,1774381841725,-500.0,0.00014487,2]
[408880021,1774381841734,-623.11598405,0.00014487,2]
[408880022,1774381841743,-500.0,0.00014487,2]
[408880023,1774381841752,-500.0,0.00014487,2]
[408880024,1774381841760,-513.0801442,0.00014487,2]
[408880025,1774381841769,-500.0,0.00014487,2]
[408880026,1774381841778,-500.0,0.00014487,2]
[408880027,1774381841787,-500.0,0.00014487,2]
[408880028,1774381841796,-408.43146087,0.00014487,2]
[408880029,1774381841805,-625.92,0.00014487,2]
[408880030,1774381841814,-625.92,0.00014487,2]
[408880031,1774381841824,-625.92,0.00014487,2]
[408880032,1774381841832,-625.92,0.00014487,2]
[408880033,1774381841842,-625.92,0.00014487,2]
[408880034,1774381841850,-625.92,0.00014487,2]
[408880035,1774381841859,-625.92,0.00014487,2]
[408880036,1774381841869,-625.92,0.00014487,2]
[408880037,1774381841878,-625.92,0.00014487,2]
[408880038,1774381841887,-625.92,0.00014487,2]
[408880039,1774381841896,-625.92,0.00014487,2]
[408880040,1774381841905,-625.92,0.00014487,2]
[408880041,1774381841915,-625.92,0.00014487,2]
[408880042,1774381841924,-625.92,0.00014487,2]
[408880043,1774381841933,-625.92,0.00014487,2]
[408880044,1774381841943,-625.92,0.00014487,2]
[408880045,1774381841952,-625.92,0.00014487,2]
[408880046,1774381841961,-500.0,0.00014487,2]
[408880047,1774381841970,-500.0,0.00014487,2]
[408880048,1774381841979,-500.0,0.00014487,2]
[408880049,1774381841988,-500.0,0.00014487,2]
[408880050,1774381841997,-500.0,0.00014487,2]
[408880051,1774381842006,-500.0,0.00014487,2]
[408880052,1774381842015,-1046.8329771,0.00014487,2]
[408880053,1774381842024,-3162.80581936,0.00014487,2]
[408880054,1774381842034,-2222.8763441,0.00014487,2]
[408880055,1774381842044,-2679.32196654,0.00014487,2]
[408880056,1774381842054,-166.66,0.00014512,2]
[408880057,1774381842064,-500.0,0.00014572,2]
[408880058,1774381842074,-285.85017625,0.00014646,2]
[408880059,1774381842083,-9198.3394215,0.00014648,2]
[408880060,1774381842092,-616.72336867,0.00014649,2]
[408880061,1774381842102,-1370.62974145,0.0001465,2]
[408880062,1774381842111,-992.02,0.00014664,2]
[408880063,1774381842121,-420.0,0.00014715,2]
[408880064,1774381842130,-500.63263987,0.00014721,2]
[408880065,1774381842138,-504.67871963,0.00014721,2]
[408880066,1774381842147,-1000.62395653,0.00014721,2]
[408880067,1774381842157,-1000.0,0.00014721,2]
[408880068,1774381842167,-500.0,0.00014721,2]
[408880069,1774381842176,-449.54382398,0.00014721,2]
[408880070,1774381842185,-1000.0,0.00014721,2]
[408880071,1774381842194,-1000.0,0.00014721,2]
[408880072,1774381842204,-1000.0,0.00014721,2]
[408880073,1774381842213,-1000.0,0.00014721,2]
[408880074,1774381842223,-1000.0,0.00014721,2]
[408880075,1774381842232,-500.45556563,0.00014721,2]
[408880076,1774381842241,-504.00492722,0.00014721,2]
[408880077,1774381842251,-1000.0,0.00014721,2]
[408880078,1774381842260,-1000.0,0.00014721,2]
[408880079,1774381842269,-1000.0,0.00014721,2]
[408880080,1774381842280,-250.0,0.0001473,2]
[408880081,1774381842289,-150.0,0.00014758,2]
[408880082,1774381842298,-1680.0,0.00014766,2]
[408880083,1774381842307,-1318.1988727,0.00014774,2]
[408880084,1774381842316,-500.0,0.00014795,2]
[408880085,1774381842327,-200.0,0.00014819,2]
[408880086,1774381842335,-255.0,0.00014821,2]
[408880087,1774381842345,-270.3424235,0.00014846,2]
[408880088,1774381842355,-299.53331993,0.00014848,2]
[408880089,1774381842364,-9198.3394215,0.00014856,2]
[408880090,1774381842374,-13116.53243606,0.00014858,2]
[408880091,1774381842383,-154.29462543,0.00014886,2]
[408880092,1774381842392,-216.228181,0.00014895,7]
[408880093,1774381842401,-197.171,0.000149,2]
[408880094,1774381842410,-992.02,0.00014938,2]
[408880095,1774381842420,-1370.62974145,0.00014963,2]
[408880096,1774381842430,-382.48939346,0.00014963,2]
[408880097,1774381842440,-406.36987,0.0001497,7]
[408880098,1774381842452,-471.24111356,0.00014987,2]
[408880099,1774381842461,-300.0,0.00015,2]
[408880100,1774381842470,-150.0,0.00015053,2]
[408880101,1774381842480,-9198.3394215,0.00015065,2]
[408880102,1774381842490,-13116.53243606,0.00015067,2]
[408880103,1774381842499,-1215.43,0.00015068,2]
[408880104,1774381842509,-510.44320502,0.00015096,2]
[408880105,1774381842519,-150.58347309,0.00015099,2]
[408880106,1774381842529,-1318.1988727,0.0001515,2]
[408880107,1774381842538,-206.391018,0.00015165,7]
[408880108,1774381842547,-625.92,0.00015198,2]
[408880109,1774381842556,-151.51747593,0.00015199,2]
[408880110,1774381842566,-500.0,0.00015199,2]
[408880111,1774381842575,-151.0,0.00015199,2]
[408880112,1774381842584,-695.39793187,0.00015199,2]
[408880113,1774381842594,-9552.16786547,0.00015199,2]
[408880114,1774381842603,-500.0,0.00015199,2]
[408880115,1774381842611,-500.0,0.00015199,2]
[408880116,1774381842621,-500.0,0.00015199,2]
[408880117,1774381842630,-500.0,0.00015199,2]
[408880118,1774381842640,-500.0,0.00015199,2]
[408880119,1774381842649,-500.0,0.00015199,2]
[408880120,1774381842658,-500.0,0.00015199,2]
[408880122,1774381842667,-500.0,0.00015199,2]
[408880123,1774381842677,-500.0,0.00015199,2]
[408880125,1774381842686,-500.0,0.00015199,2]
[408880126,1774381842695,-500.0,0.00015199,2]
[408880128,1774381842704,-500.0,0.00015199,2]
[408880129,1774381842714,-500.0,0.00015199,2]
[408880131,1774381842724,-500.0,0.00015199,2]
[408880132,1774381842733,-500.0,0.00015199,2]
[408880133,1774381842742,-500.0,0.00015199,2]
[408880134,1774381842751,-500.0,0.00015199,2]
[408880135,1774381842761,-500.0,0.00015199,2]
[408880136,1774381842770,-500.0,0.00015199,2]
[408880137,1774381842779,-500.0,0.00015199,2]
[408880138,1774381842788,-500.0,0.00015199,2]
[408880139,1774381842797,-500.0,0.00015199,2]
[408880140,1774381842806,-500.0,0.00015199,2]
[408880141,1774381842815,-500.0,0.00015199,2]
[408880142,1774381842824,-500.0,0.00015199,2]
[408880143,1774381842834,-500.0,0.00015199,2]
[408880144,1774381842843,-500.0,0.00015199,2]
[408880145,1774381842853,-500.0,0.00015199,2]
[408880146,1774381842862,-174.61919141,0.00015199,2]
[408880147,1774381842873,-500.0,0.00015199,2]
[408880148,1774381842882,-500.0,0.00015199,2]
[408880149,1774381842891,-151.0,0.00015199,2]
[408880150,1774381842901,-500.0,0.00015199,2]
[408880151,1774381842910,-500.0,0.00015199,2]
[408880152,1774381842919,-500.0,0.00015199,2]
[408880153,1774381842928,-151.0,0.00015199,2]
[408880154,1774381842937,-156.587,0.00015199,2]
[408880155,1774381842947,-200.0,0.00015199,2]
[408880156,1774381842956,-194.37971726,0.00015199,2]
[408880157,1774381842965,-693.3919763,0.00015199,2]
[408880158,1774381842974,-250.0,0.00015199,2]
[408880159,1774381842983,-250.0,0.00015199,2]
[408880160,1774381842993,-250.0,0.00015199,2]
[408880161,1774381843002,-250.0,0.00015199,2]
[408880162,1774381843011,-250.0,0.00015199,2]
[408880163,1774381843020,-250.0,0.00015199,2]
[408880164,1774381843030,-209.40437684,0.00015199,2]
[408880165,1774381843040,-250.0,0.00015199,2]
[408880167,1774381843049,-250.0,0.00015199,2]
[408880169,1774381843059,-279.9045709,0.00015199,2]
[408880171,1774381843069,-250.0,0.00015199,2]
[408880173,1774381843078,-250.0,0.00015199,2]
[408880175,1774381843087,-250.0,0.00015199,2]
[408880177,1774381843097,-262.90206542,0.00015199,2]
[408880179,1774381843107,-743.50770149,0.00015199,2]
[408880180,1774381843116,-500.0,0.00015199,2]
[408880181,1774381843126,-500.0,0.00015199,2]
[408880182,1774381843135,-500.0,0.00015199,2]
[408880183,1774381843145,-500.0,0.00015199,2]
[408880184,1774381843155,-500.0,0.00015199,2]
[408880185,1774381843165,-150.0,0.000152,2]
[408880186,1774381843174,-250.72299322,0.000152,2]
[408880187,1774381843185,-990.448404,0.000152,2]
[408880188,1774381843195,-350.0,0.00015205,2]
[408880189,1774381843206,-992.02,0.00015212,2]
[408880190,1774381843215,-500.0,0.00015254,2]
[408880191,1774381843226,-9905.5980765,0.00015254,2]
[408880192,1774381843235,-151.0,0.00015254,2]
[408880193,1774381843244,-272.62944185,0.00015254,2]
[408880194,1774381843255,-500.0,0.0001526,2]
[408880195,1774381843264,-1500.0,0.00015268,2]
[408880196,1774381843273,-197.81018147,0.00015268,2]
[408880197,1774381843283,-1500.0,0.00015268,2]
[408880198,1774381843293,-1500.0,0.00015268,2]
[408880199,1774381843302,-1500.0,0.00015268,2]
[408880200,1774381843313,-403.17353576,0.00015268,2]
[408880201,1774381843324,-1500.0,0.00015268,2]
[408880202,1774381843333,-1500.0,0.00015268,2]
[408880203,1774381843344,-166.66,0.00015269,2]
[408880204,1774381843355,-9198.3394215,0.00015273,2]
[408880205,1774381843365,-369.4088544,0.00015274,2]
[408880206,1774381843377,-552.69,0.00015274,2]
[408880207,1774381843386,-391.0509546,0.00015274,2]
[408880208,1774381843396,-613.94,0.00015274,2]
[408880209,1774381843405,-1370.62974145,0.00015275,2]
[408880210,1774381843414,-13116.53243606,0.00015275,2]
[408880211,1774381843423,-700.0,0.00015297,2]
[408880212,1774381843432,-500.0,0.00015309,2]
[408880213,1774381843441,-10272.10520533,0.00015309,2]
[408880214,1774381843454,-151.0,0.00015309,2]
[408880215,1774381843463,-282.71673119,0.00015309,2]
[408880216,1774381843472,-168.0,0.00015342,2]
[408880217,1774381843482,-500.0,0.00015364,2]
[408880218,1774381843493,-10652.17309792,0.00015364,2]
[408880219,1774381843502,-151.0,0.00015364,2]
[408880220,1774381843511,-510.44320502,0.00015364,2]
[408880221,1774381843521,-200.0,0.00015367,2]
[408880222,1774381843530,-200.0,0.0001539,2]
[408880223,1774381843540,-398.79,0.00015403,2]
[408880224,1774381843551,-500.0,0.00015419,2]
[408880225,1774381843562,-11046.30350255,0.00015419,2]
[408880226,1774381843571,-151.0,0.00015419,2]
[408880227,1774381843581,-500.0,0.00015474,2]
[408880228,1774381843591,-11455.01673214,0.00015474,2]
[408880229,1774381843600,-151.0,0.00015474,2]
[408880230,1774381843609,-9198.3394215,0.00015481,2]
[408880231,1774381843619,-13116.53243606,0.00015483,2]
[408880232,1774381843628,-992.02,0.00015486,2]
[408880233,1774381843640,-160.0,0.00015491,2]
[408880234,1774381843649,-160.0,0.00015491,2]
[408880235,1774381843660,-979.16666667,0.00015491,2]
[408880236,1774381843670,-160.0,0.00015491,2]
[408880238,1774381843679,-150.0,0.00015495,2]
[408880240,1774381843689,-1318.1988727,0.00015525,2]
[408880242,1774381843698,-2357.42141256,0.00015529,2]
[408880244,1774381843708,-5076.0,0.00015564,2]
[408880246,1774381843717,-912.0,0.00015565,2]
[408880248,1774381843726,-1370.62974145,0.00015588,2]
[408880250,1774381843735,-350.0,0.00015589,2]
[408880252,1774381843744,-809.0,0.00015627,2]
[408880255,1774381843753,-510.44320502,0.00015632,2]
[408880258,1774381843762,-587.0,0.0001566,2]
[408880260,1774381843772,-1068.40091604,0.0001568,2]
[408880263,1774381843781,-9198.3394215,0.00015689,2]
[408880265,1774381843791,-13116.53243606,0.00015692,2]
[408880267,1774381843801,-150.0,0.00015692,2]
[408880268,1774381843812,-2000.0,0.000157,2]
[408880269,1774381843822,-912.0,0.00015739,2]
[408880270,1774381843831,-151.0,0.00015747,2]
[408880271,1774381843840,-181.08010149,0.00015747,2]
[408880272,1774381843849,-200.0,0.00015747,2]
[408880273,1774381843860,-668.65185757,0.00015747,2]